Cogmind - Beta 14 @@@ ROGUE MODE // 2025.03.06 @ 21:09:46 Player: Happy Aspid Result: Destroyed by as-13732 with Assembled Blade Performance ------------- Evolutions (0) 0 Regions Visited (2) 400 Robots Destroyed (27) 135 Value Destroyed (659) 659 Prototype IDs (2) 40 Alien Tech Used (0) 0 Bonus (-258) -258 TOTAL SCORE: 976 Bonus ------- Friendly Fire -258 Cogmind --------- Core Integrity 0/250 Matter 279/300 Energy 211/250 System Corruption 1% Temperature Cool (0) Movement Core (1500) Ox29 Location -10/Mines Parts ------- > --- POWER (1) -------- Ion Engine > --- PROPULSION (2) --- Aluminum Leg > --- UTILITY (2) ------ Huge Storage Unit > --- WEAPON (2) ------- Pulse Rifle Light Assault Rifle > --- INVENTORY (25) --- Ion Engine Improved Treads Improved Treads Aluminum Leg Aluminum Leg Aluminum Leg Wheel High-capacity Storage Unit Medium Battery (150) Large Matter Pod (150) High-capacity Matter Pod (200) High-capacity Matter Pod (162) Structural Scanner Visual Processing Unit Signal Interpreter Seismic Detector Targeting Computer Particle Charger Particle Charger Grenade Launcher Improved Datajack Peak State ------------ > --- POWER ------------ Nuclear Core > --- PROPULSION ------- Improved Treads Improved Treads > --- UTILITY ---------- Huge Storage Unit Improved Terrain Scanner > --- WEAPON ----------- Small Laser Pulse Rifle > --- INVENTORY -------- Ion Engine Ion Engine Improved Treads Improved Treads Aluminum Leg Aluminum Leg Aluminum Leg Aluminum Leg Wheel Compact Wheel High-capacity Storage Unit Medium Battery Large Matter Pod High-capacity Matter Pod High-capacity Matter Pod Structural Scanner Visual Processing Unit Signal Interpreter Seismic Detector Targeting Computer Particle Charger Power Shielding Small Laser Light Assault Rifle Grenade Launcher [Rating: 18] Favorites ----------- Power Ion Engine Engine Ion Engine Power Core Nuclear Core Propulsion Light Treads Treads Light Treads Leg Aluminum Leg Wheel Wheel Utility Huge Storage Unit Device Heat Sink Storage Huge Storage Unit Weapon Small Laser Energy Gun Small Laser Ballistic Gun Light Assault Rifle Launcher Grenade Launcher Build | -11 -10 -10 ------- Run | Yrd Mat Min Slots Evolved . | . . . Power . | . . . Propulsion . | . . . Utility . | . . . Weapon . | . . . Parts Attached 33 | 6 13 14 Power 5 | 1 2 2 Engine 4 | 1 2 1 Core 1 | . . 1 Reactor . | . . . Propulsion 9 | 2 1 6 Treads 5 | 2 . 3 Leg 1 | . . 1 Wheel 3 | . 1 2 Hover . | . . . Flight . | . . . Utility 4 | 1 2 1 Device 2 | . 1 1 Storage 2 | 1 1 . Processor . | . . . Hackware . | . . . Protection . | . . . Artifact . | . . . Weapon 15 | 2 8 5 Energy Gun 10 | 2 5 3 Energy Cannon . | . . . Ballistic Gun 1 | . . 1 Ballistic Cannon . | . . . Launcher 4 | . 3 1 Special Weapon . | . . . Impact Weapon . | . . . Slashing Weapon . | . . . Piercing Weapon . | . . . Special Melee Weapon . | . . . Unidentified Prototypes . | . . . Parts Lost 9 | . 1 8 Power 2 | . 1 1 Propulsion 5 | . . 5 Utility 1 | . . 1 Weapon 1 | . . 1 Highest Loss Streak 3 | . 1 3 To Critical Strikes . | . . . Average Slot Usage (%) 94 | . 95 92 Engine 8 | . 11 5 Core 3 | . . 8 Treads 19 | . 17 20 Leg 1 | . . 2 Wheel 7 | . 10 3 Device 11 | . 12 10 Storage 14 | . 14 14 Energy Gun 26 | . 27 24 Peak Build Rating 18 | 6 10 18 Average Rating 10 | 4 7 13 On Entrance 5 | . 6 10 Naked Turns . | . . . Heaviest Build 94 | 11 89 94 Greatest Support 46 | 40 40 46 Greatest Overweight (x) 8 | . 8 8 Average Overweight (x) 4 | . 5 2 Largest Inventory Capacity 25 | 8 25 25 Average Capacity 21 | 6 20 25 Most Carried 25 | 5 25 25 Average Carried 18 | 3 15 24 Final Capacity 25 | 8 25 25 Final Carried 25 | 5 25 21 Class Distribution -------------------- 100% | Mutant Dominant Class ---------------- Mutant | -10/Materials Mutant | -10/Mines Resources | -11 -10 -10 ----------- Run | Yrd Mat Min Matter Collected 1077 | 221 535 321 Remotely . | . . . Salvage Created 817 | 19 597 201 Parts 39 | 3 31 5 Haulers Intercepted 1 | . 1 . Recyclers Shooed 2 | 1 1 . Parts Field Recycled . | . . . Retrieved Matter . | . . . Parts Self-Destructed . | . . . Prevented . | . . . Kills | -11 -10 -10 ------- Run | Yrd Mat Min Combat Hostiles Destroyed 23 | . 12 11 Guns 16 | . 8 8 AOE 7 | . 4 3 Classes Destroyed 9 | 1 6 2 Builder 2 | . 2 . Tunneler 1 | 1 . . Hauler 1 | . 1 . Recycler 2 | . 2 . Watcher 2 | . 2 . Swarmer 3 | . 3 . Grunt 14 | . 9 5 Demolisher 2 | . . 2 Assembled 6 | . . 6 Best Kill Streak 6 | 1 6 5 Combat Bots Only 5 | . 4 5 Max Kills in Single Turn 4 | 1 4 3 Gunslinging 1 | . 1 . Exploded 2 | . 2 2 Melee . | . . . Uniques/NPCs Destroyed . | . . . Combat | -11 -10 -10 -------- Run | Yrd Mat Min Hostile Shots Fired 119 | . 66 53 Missed 35 | . 24 11 Damage Taken 1537 | . 488 1049 Core 269 | . 83 186 Absorbed by Shields . | . . . Core Remaining (%) 100 | 100 . . Volleys Fired 108 | 4 67 37 Largest 2 | 2 2 2 Hottest 103 | 90 90 103 Shots Fired 188 | 8 128 52 Gun 178 | 8 122 48 Cannon . | . . . Launcher 10 | . 6 4 Special . | . . . Kinetic 1 | . . 1 Thermal 177 | 8 122 47 Explosive 10 | . 6 4 Electromagnetic . | . . . Robot Hit Streak 17 | 3 17 10 Robot Miss Streak 4 | 2 4 2 Penetration Max . | . . . Secondary Targets 6 | . 4 2 Max Gunslinging Chain 1 | . 1 1 Shots Hit Robots 125 | 5 83 37 Core Hits 70 | 2 38 30 Critical Kills . | . . . Critical Parts Destroyed . | . . . Critical Strikes 5 | . 3 2 Burn 5 | . 3 2 Melee Attacks . | . . . Impact . | . . . Slashing . | . . . Piercing . | . . . Sneak Attacks . | . . . Combat Hostiles . | . . . Follow-up Attacks . | . . . Damage Inflicted 2208 | 58 1353 797 Guns 1542 | 58 972 512 Cannons . | . . . Explosions 666 | . 381 285 Melee . | . . . Ramming . | . . . Kinetic . | . . . Thermal 1542 | 58 972 512 Explosive 666 | . 381 285 Electromagnetic . | . . . Impact . | . . . Slashing . | . . . Piercing . | . . . Highest Corruption 1 | . . 1 Average Corruption 1 | . . 1 Corruption Purged . | . . . Corruption Blocked . | . . . Effects 1 | . . 1 Message Errors 1 | . . 1 Overload Shots . | . . . Overflow Damage 10 | . 2 8 Projectiles . | . . . Explosions 10 | . 2 8 Melee . | . . . Knockbacks . | . . . Impact . | . . . Kinetic . | . . . Secondary . | . . . Self-Inflicted Damage 6 | . . 6 Shots 1 | . . 1 Rammed . | . . . Targets Rammed . | . . . Kicked . | . . . Crushed . | . . . Highest Temperature 327 | 90 327 244 Average Temperature 97 | 42 127 82 Received Heat Transfer 375 | . 255 120 Siege Activations . | . . . Robots Corrupted . | . . . Combat Hostiles . | . . . Parts Fried . | . . . Impact Corruptions . | . . . Robots Melted . | . . . Combat Hostiles . | . . . Parts Melted 7 | . 4 3 Heat Transferred 4310 | 149 2813 1348 Parts Sabotaged . | . . . Parts Stolen . | . . . Parts Stripped . | . . . Power Chain Reactions . | . . . Alert | -11 -10 -10 ------- Run | Yrd Mat Min Peak Influence 182 | 5 182 84 Initial 44 | . 3 44 Average 68 | 1 92 43 Maximum Alert Level . | . . . Low Security (%) 100 | 100 100 100 Level 1 . | . . . Level 2 . | . . . Level 3 . | . . . Level 4 . | . . . Level 5 . | . . . High Security . | . . . Max Security . | . . . Squads Dispatched 2 | . 1 1 Investigation 1 | . . 1 Extermination . | . . . Reinforcement 1 | . 1 . Assault . | . . . Garrison . | . . . Intercept . | . . . Searches Triggered . | . . . Construction Impeded . | . . . Haulers Reinforced . | . . . Active Scanning Responses . | . . . Cargo Convoy Interrupts . | . . . Stealth | -11 -10 -10 --------- Run | Yrd Mat Min Distress Signals 4 | . 3 1 Communications Jammed . | . . . Distress Signals . | . . . Times Spotted 36 | . 20 16 Peak Tracking Total 8 | . 4 8 Tactical Retreats 1 | . 1 . Traps | -11 -10 -10 ------- Run | Yrd Mat Min Traps Triggered . | . . . Indirectly . | . . . Trap Hack Attempts . | . . . Triggered . | . . . Disarmed . | . . . Reprogrammed . | . . . Reused . | . . . Traps Extracted . | . . . Installed . | . . . Triggered . | . . . Machines | -11 -10 -10 ---------- Run | Yrd Mat Min Machines Disabled . | . . . Max in Single Turn . | . . . Machines Repaired . | . . . Machines Dismantled . | . . . Machines Sabotaged . | . . . Overloaded Fab Kills . | . . . Hacking | -11 -10 -10 --------- Run | Yrd Mat Min Machines Accessed 5 | . 4 1 Terminals 4 | . 4 . Fabricators . | . . . Repair Stations . | . . . Recycling Units . | . . . Scanalyzers . | . . . Garrison Access . | . . . Total Hacks 13 | . 12 1 Successful 8 | . 7 1 Failed 5 | . 5 . Catastrophic 1 | . 1 . Database Lockouts . | . . . Manual . | . . . Terminals 12 | . 12 . Fabricators . | . . . Repair Stations . | . . . Recycling Units . | . . . Scanalyzers . | . . . Garrison Access . | . . . Terminal Hacks 8 | . 7 1 Robot Analysis 2 | . 2 . Prototype ID Bank 1 | . 1 . Open Door 1 | . . 1 Scanalyzer Index 1 | . 1 . Locate Traps 1 | . 1 . Dispatch Records 1 | . 1 . Hauler Manifests 1 | . 1 . Fabricator Hacks . | . . . Repair Station Hacks . | . . . Recycling Unit Hacks . | . . . Scanalyzer . | . . . Garrison Access Hacks . | . . . Unauthorized Hacks . | . . . Terminals . | . . . Fabricators . | . . . Repair Stations . | . . . Recycling Units . | . . . Scanalyzers . | . . . Garrison Access . | . . . Data Cores Recovered . | . . . Used . | . . . Hacking Detections 3 | . 3 . Full Trace Events . | . . . Feedback Events . | . . . Feedback Blocked . | . . . Robot Schematics Acquired . | . . . Robots Built . | . . . Authchips . | . . . Time . | . . . Total Robot Build Rating . | . . . Part Schematics Acquired . | . . . Parts Built . | . . . Authchips . | . . . Time . | . . . Total Part Build Rating . | . . . Parts Repaired . | . . . Time . | . . . Parts Recycled . | . . . Recycled Matter . | . . . Retrieved Matter . | . . . Retrieved Components . | . . . Parts Scanalyzed . | . . . Part Schematics Acquired . | . . . Parts Damaged . | . . . Bothacking | -11 -10 -10 ------------ Run | Yrd Mat Min Used RIF Installer . | . . . Robots Hacked . | . . . Non-combat . | . . . Combat . | . . . Robot Hacks Applied . | . . . Relay Couplers Released . | . . . Fabnet Peak Effective % . | . . . Robots Rewired . | . . . Allies Hacked . | . . . Hacks Repelled . | . . . Allies | -11 -10 -10 -------- Run | Yrd Mat Min Total Allies 3 | . . 3 Largest Group 3 | . . 3 Highest-Rated Group 40 | . . 40 Highest-Rated Ally 16 | . . 16 Total Orders . | . . . Ally Attacks 14 | . . 14 Total Damage 151 | . . 151 Kills 1 | . . 1 Allies Corrupted . | . . . Allies Melted . | . . . Intel | -11 -10 -10 ------- Run | Yrd Mat Min Robot Analysis Total 2 | . 2 . Derelict Logs Recovered 1 | . . 1 Drone Launches . | . . . Drone Recoveries . | . . . Exploration | -11 -10 -10 ------------- Run | Yrd Mat Min Turns Passed 2031 | 79 1121 831 Spaces Moved 810 | 37 467 306 Core 7 | 7 . . Treads 402 | 30 137 235 Legs . | . . . Wheels 401 | . 330 71 Hover . | . . . Flight . | . . . Fastest Speed 50 | 50 160 175 Average Speed 202 | 139 188 230 Slowest Speed 320 | 160 320 240 Overloaded Moves . | . . . Propulsion Burnouts . | . . . Robots Hopped . | . . . Cave-ins Triggered . | . . . Exploration Rate (%) 46 | 4 81 54 Regions Visited 2 Branch Regions 1 Pre-discovered Areas 1 | . . 1 Known Exits Taken . | . . . Unknown Exits Taken 2 | 1 1 . Scrap Searched . | . . . Spaces Dug . | . . . Terrain Destroyed 55 | . 29 26 Melee . | . . . Projectile . | . . . AOE 55 | . 29 26 Terrain Rammed . | . . . Walls Destroyed . | . . . Machines Disabled . | . . . Actions | -11 -10 -10 --------- Run | Yrd Mat Min Total 1017 | 57 577 383 Wait 15 | . 3 12 Move 808 | 36 466 306 Hop . | . . . Pick Up 42 | 11 24 7 Fast Attach 1 | . . 1 Attach 16 | 6 2 8 Detach . | . . . Swap 16 | . 11 5 Drop 11 | . 4 7 Fire 108 | 4 67 37 Melee . | . . . Ram . | . . . Kick . | . . . Crush . | . . . Escape Stasis . | . . . Rewire . | . . . Trap . | . . . Miscellaneous . | . . . Route ------- -11/Scrapyard -10/Materials (discovered 2 exits: [*Mat] / *Min) -10/Mines (discovered 1 exit: [*Mat]) History --------- Turn | Location | Event 21 | -11/Scrapyard | Discovered new exit (range 15) 80 | -11/Scrapyard | Entered Materials 301 | -10/Materials | Build established: Mutant 443 | -10/Materials | Discovered new exit (range 7) 716 | -10/Materials | Discovered new exit (range 13) 1201 | -10/Materials | Entered Mines 1233 | -10/Mines | Core integrity fell below 50% 1377 | -10/Mines | Learned location of Zion (-6) 1445 | -10/Mines | Discovered new exit (range 9) 1470 | -10/Mines | Met a Derelict shopkeep closing up shop 1676 | -10/Mines | Assisted by bots powering up and referring to "LRC-V3" 1809 | -10/Mines | Assembled infested the area 1872 | -10/Mines | Lost 3 allies 1895 | -10/Mines | Lost 3 parts (2n1w) 1970 | -10/Mines | Core integrity fell below 20% 2032 | -10/Mines | Destroyed by as-13732 with Assembled Blade Last Messages --------------- 01946_ Knocked back. 01946_ U-05 Engineer lays Concrete. 01947_ as-55996 suffers critical hit (Burn). 01947_ as-55996 destroyed. 01948_ U-05 Engineer builds a Wall. 01948_ U-05 Engineer lays Concrete. 01951_ K-01 Serf collects debris. 01951_ Acquired 9 matter. 01957_ U-05 Engineer builds a Wall. 01960_ The unstable cave ceiling collapses. 01985_ as-69782 destroyed. 01996_ Nuclear Core destroyed. 01996_ System corrupted by crushing effect (+1). 01999_ as-96123 destroyed. 02002_ Acquired 4 matter. 02006_ DNTSKIHZ3INMIPL AZYTDE 02020_ Acquired 9 matter. 02024_ Wheel destroyed. 02027_ Pulse Rifle severed. 02029_ Acquired Pulse Rifle. Map ----- +----------------------------------------------------+ | ###### ##??????????#???#??????????????????? | | # #??????????#??????????????????????? | | ##??###???#????"??????????????????? | | ##??## ######??????????????????????? | | ###??## ##??????????????????????? | | # ###??## # # #??????????????????????? | | # ###?### ## #? ????????????????????? | | # ########## # # ! ##??????????#???????????? | | ##?##### = #??????????????????????? | | ####??## # #?????? ???????????????? | | ##?#??## #????? ????????????????? | | #?#?##### =# ##??????????????????????? | | #??## # ##?#?????????????????????? | | #### ## #######????????????????????????? | | ! ###????????#?????????????????????? | | ### # # # # ######???????????????????????????? | | ### # ### # ##### ##???????????????????????????? | | ## # ###??# #?#?#???????????????????????? | | "" ##??### ######??????????????????????? | | "" ##??## #??????????????????????? | | "" # # #?## #??# #??????????????????????? | | = # # #### ##?# #??????????????????????? | | #### # # ### #?# ##?????????????????????? | | ??## ### ### #??##??????????????????? | | ???# #?###### ## # !####???????????????? | | ??## #??????## @a !% %%%#?????????????? | | #### #?#?????### ## ## *####???????????????? | | #?????????# ###### #???%%#?????????????????? | | ######?????#???# #????# ?????*#????????????????? | | ???????????????# #????## #??????????????????????? | | ???????????????# #?????? #??????????????????????? | | ???#???????????# #?????? ???????????????????????? | | ???#??????????? #?????? #??????????????????????? | | ??#???????????? ?????? #??????????????????????? | | ?????????????? ?????? #??????????????????????? | | ???#??????????"" ?????? #??????????????????????? | | ####??????????"" #????? #??????????????????????? | | #???????????" ###??????#??????????????????????? | | #??????????? ????????????????????????????????? | | #???????????? ????????????????????????????????? | | #???????????? ????????????????????????????????? | | #?????????????????????????????????????????????? | | #?????????????????????????????????????????????? | | #?????????????????????????????????????????????? | | #?????????????????????????????????????????????? | | #?????????????????????????????????????????????? | | ####?????????????????????????????????????????????? | | ?????????????????????????????????????????????????? | | ?????????????????????????????????????????????????? | | ?????????????????????????????????????????????????? | +----------------------------------------------------+ Best States ------------- Heat Dissipation 35 Energy Generation 14 Energy Capacity 250 Matter Stores 300 Matter Capacity 300 Sight Range 16 Terrain Scan Range 16 Terrain Scan Density 10 Evasion (%) 40 Recoil Reduction 2 Item Schematics ----------------- None Robot Schematics ------------------ None Fabricated ------------ Nothing Alien Tech Used ----------------- None Achievements -------------- None Challenges ------------ None Game ------ Seed MultinovaTitaniumTearclaws Manual? 0 Play Time 00:14:39 Cumulative 198.6 hours Start 2025.03.06 @ 20:56:06 End 2025.03.06 @ 21:09:46 Sessions 1 Manual Loads 0 Difficulty Rogue Special Mode None Game No. 232 Rogue 232 Adventurer 0 Explorer 0 Win Type - Total 0 Types 0/0/0/0/0/0/0/0/0 Lore% 29 Gallery% 62 Achievement% 50 Wizard Run 0 Options --------- Layout 1 ASCII 0 Keyboard 0 Movement Mouse Keybinds 0 Fullscreen 1 Font 24/Smallcaps Map View 50x35 Zoom Use 0% Tactical HUD 1 Map Filters NONE Filters NONE Steam 1 RUN: d21b0b42-a747-453c-b687-0a11207fedcc